Cogmind - Beta 13 @@@ ROGUE MODE // 2024.04.08 @ 19:03:56 Player: Fractal Result: Destroyed by Y-45 Defender with Heavy Assault Rifle Performance ------------- Evolutions (1) 500 Regions Visited (2) 400 Robots Destroyed (38) 190 Value Destroyed (709) 709 Prototype IDs (4) 80 Alien Tech Used (0) 0 Bonus (0) 0 TOTAL SCORE: 1879 Bonus ------- None Cogmind --------- Core Integrity 0/400 Matter 300/300 Energy 100/100 System Corruption 0% Temperature Cool (0) Movement Walking (260) Ox2 Location -9/Materials Parts ------- > --- POWER (1) -------- (None) > --- PROPULSION (2) --- Aluminum Leg > --- UTILITY (4) ------ Large Storage Unit > --- WEAPON (2) ------- Small Laser Small Laser > --- INVENTORY (15) --- Aluminum Leg Aluminum Leg Compact Wheel Large Storage Unit Large Storage Unit Small Laser Small Laser Peak State ------------ > --- POWER ------------ Light Nuclear Core > --- PROPULSION ------- Wheel Wheel > --- UTILITY ---------- Improved Heat Sink Large Storage Unit Large Storage Unit > --- WEAPON ----------- EM Pulse Gun Improved Light Cannon > --- INVENTORY -------- Compact Wheel Compact Wheel Large Storage Unit Large Storage Unit Sensor Array Improved Terrain Scanner Small Laser Light Assault Rifle Mining Laser [Rating: 14] Favorites ----------- Power Ion Engine Engine Ion Engine Power Core Light Nuclear Core Propulsion Compact Wheel Leg Aluminum Leg Wheel Compact Wheel Utility Large Storage Unit Device Improved Heat Sink Storage Large Storage Unit Protection Medium Armor Plating Weapon Small Laser Energy Gun Small Laser Ballistic Gun Assault Rifle Ballistic Cannon Improved Light Cannon Special Weapon Mining Laser Build | -11 -10 -9 ------- Run | Yrd Mat Mat Slots Evolved 2 | . . 2 Power . | . . . Propulsion . | . . . Utility 2 | . . 2 Weapon . | . . . Parts Attached 44 | 9 15 20 Power 5 | 1 3 1 Engine 4 | 1 2 1 Core 1 | . 1 . Reactor . | . . . Propulsion 11 | 2 3 6 Treads . | . . . Leg 3 | . . 3 Wheel 8 | 2 3 3 Hover . | . . . Flight . | . . . Utility 11 | 3 3 5 Device 5 | 1 2 2 Storage 4 | 2 1 1 Processor . | . . . Hackware . | . . . Protection 2 | . . 2 Artifact . | . . . Weapon 17 | 3 6 8 Energy Gun 8 | 1 2 5 Energy Cannon . | . . . Ballistic Gun 5 | 2 2 1 Ballistic Cannon 1 | . . 1 Launcher . | . . . Special Weapon 3 | . 2 1 Impact Weapon . | . . . Slashing Weapon . | . . . Piercing Weapon . | . . . Special Melee Weapon . | . . . Unidentified Prototypes . | . . . Parts Lost 23 | . 8 15 Power 4 | . 2 2 Propulsion 7 | . 2 5 Utility 5 | . 1 4 Weapon 7 | . 3 4 Highest Loss Streak 7 | . 7 5 To Critical Strikes . | . . . Average Slot Usage (%) 80 | . 84 73 Engine 3 | . 5 . Core 4 | . 7 1 Wheel 21 | . 25 15 Device 9 | . 5 15 Storage 13 | . 14 13 Protection 2 | . . 4 Energy Gun 12 | . 12 13 Ballistic Gun 4 | . 7 . Ballistic Cannon 1 | . . 2 Special Weapon 4 | . 5 3 Naked Turns . | . . . Heaviest Build 52 | 16 34 52 Greatest Support 32 | 32 32 26 Greatest Overweight (x) 13 | . 8 13 Average Overweight (x) . | . . 1 Largest Inventory Capacity 15 | 8 15 15 Average Capacity 13 | 7 14 15 Most Carried 15 | 8 15 9 Average Carried 7 | 5 8 5 Final Capacity 15 | 8 15 15 Final Carried 8 | 8 8 7 Class Distribution -------------------- 62% | Mutant 37% | Scavenger-Mutant Dominant Class ---------------- Mutant | -10/Materials Mutant | -9/Materials Resources | -11 -10 -9 ----------- Run | Yrd Mat Mat Matter Collected 821 | 347 198 276 Remotely . | . . . Salvage Created 931 | 214 333 384 Parts 76 | 21 28 27 Haulers Intercepted . | . . . Recyclers Shooed . | . . . Parts Field Recycled . | . . . Retrieved Matter . | . . . Parts Self-Destructed . | . . . Prevented . | . . . Kills | -11 -10 -9 ------- Run | Yrd Mat Mat Combat Hostiles Destroyed 22 | . 10 12 Guns 17 | . 9 8 Cannons 5 | . 1 4 Classes Destroyed 9 | 3 5 1 Worker 2 | 2 . . Builder 2 | . 1 1 Tunneler 7 | 6 1 . Recycler 1 | 1 . . Operator 2 | . 1 1 Watcher 2 | . 2 . Swarmer 9 | . 6 3 Grunt 10 | . 4 6 Sentry 3 | . . 3 Best Kill Streak 4 | 4 4 4 Combat Bots Only 3 | . 3 3 Max Kills in Single Turn 2 | 1 1 2 Gunslinging . | . . . Exploded . | . . . Melee . | . . . Uniques/NPCs Destroyed . | . . . Combat | -11 -10 -9 -------- Run | Yrd Mat Mat Hostile Shots Fired 233 | . 89 144 Missed 51 | . 15 36 Damage Taken 2343 | . 795 1548 Core 640 | . 235 405 Absorbed by Shields . | . . . Core Remaining (%) 53 | 100 6 . Volleys Fired 228 | 31 153 44 Largest 2 | 2 2 2 Hottest 140 | 70 140 140 Shots Fired 314 | 42 192 80 Gun 194 | 42 98 54 Cannon 22 | . . 22 Launcher . | . . . Special 98 | . 94 4 Kinetic 86 | 11 52 23 Thermal 210 | 31 140 39 Explosive . | . . . Electromagnetic 18 | . . 18 Robot Hit Streak 11 | 7 7 11 Robot Miss Streak 4 | 3 4 4 Penetration Max . | . . . Secondary Targets 1 | . 1 . Max Gunslinging Chain 1 | . 1 . Shots Hit Robots 135 | 21 62 52 Core Hits 53 | 10 22 21 Critical Kills . | . . . Critical Parts Destroyed 2 | 1 1 . Critical Strikes 10 | 4 6 . Burn 8 | 3 5 . Destroy 2 | 1 1 . Melee Attacks . | . . . Impact . | . . . Slashing . | . . . Piercing . | . . . Sneak Attacks . | . . . Combat Hostiles . | . . . Follow-up Attacks . | . . . Damage Inflicted 1886 | 315 766 805 Guns 1446 | 315 718 413 Cannons 320 | . . 320 Explosions . | . . . Melee . | . . . Ramming . | . . . Kinetic 787 | 91 370 326 Thermal 959 | 224 396 339 Explosive . | . . . Electromagnetic 140 | . . 140 Impact . | . . . Slashing . | . . . Piercing . | . . . Highest Corruption 4 | . 4 . Average Corruption 4 | . 4 . Corruption Purged . | . . . Corruption Blocked . | . . . Overload Shots . | . . . Overflow Damage 5 | . . 5 Projectiles 5 | . . 5 Explosions . | . . . Melee . | . . . Knockbacks 1 | . . 1 Impact . | . . . Kinetic 1 | . . 1 Secondary . | . . . Self-Inflicted Damage . | . . . Shots . | . . . Rammed . | . . . Targets Rammed . | . . . Kicked . | . . . Crushed . | . . . Highest Temperature 292 | 60 292 66 Average Temperature 48 | 18 65 20 Received Heat Transfer 852 | . 315 537 Siege Activations . | . . . Robots Corrupted . | . . . Combat Hostiles . | . . . Parts Fried . | . . . Impact Corruptions . | . . . Robots Melted . | . . . Combat Hostiles . | . . . Parts Melted 7 | 3 2 2 Heat Transferred 3120 | 888 1482 750 Parts Sabotaged . | . . . Parts Stolen . | . . . Parts Stripped . | . . . Power Chain Reactions . | . . . Alert | -11 -10 -9 ------- Run | Yrd Mat Mat Peak Influence 180 | 45 162 180 Initial 29 | . 29 . Average 65 | 22 61 88 Maximum Alert Level . | . . . Low Security (%) 100 | 100 100 100 Level 1 . | . . . Level 2 . | . . . Level 3 . | . . . Level 4 . | . . . Level 5 . | . . . High Security . | . . . Max Security . | . . . Squads Dispatched 5 | . 2 3 Investigation 2 | . 1 1 Extermination . | . . . Reinforcement 3 | . 1 2 Assault . | . . . Garrison . | . . . Intercept . | . . . Searches Triggered . | . . . Construction Impeded . | . . . Haulers Reinforced . | . . . Active Scanning Responses . | . . . Cargo Convoy Interrupts . | . . . Stealth | -11 -10 -9 --------- Run | Yrd Mat Mat Distress Signals 6 | . 2 4 Communications Jammed . | . . . Distress Signals . | . . . Times Spotted 46 | . 19 27 Peak Tracking Total 10 | . 5 10 Tactical Retreats 2 | . 2 . Traps | -11 -10 -9 ------- Run | Yrd Mat Mat Traps Triggered 4 | . 4 . Indirectly . | . . . Trap Hack Attempts . | . . . Triggered . | . . . Disarmed . | . . . Reprogrammed . | . . . Reused . | . . . Traps Extracted . | . . . Installed . | . . . Triggered . | . . . Machines | -11 -10 -9 ---------- Run | Yrd Mat Mat Machines Disabled . | . . . Max in Single Turn . | . . . Machines Repaired . | . . . Machines Dismantled . | . . . Machines Sabotaged . | . . . Overloaded Fab Kills . | . . . Hacking | -11 -10 -9 --------- Run | Yrd Mat Mat Machines Accessed 7 | . 4 3 Terminals 6 | . 4 2 Fabricators . | . . . Repair Stations . | . . . Recycling Units 1 | . . 1 Scanalyzers . | . . . Garrison Access . | . . . Total Hacks 18 | . 13 5 Successful 8 | . 7 1 Failed 10 | . 6 4 Catastrophic 4 | . 2 2 Database Lockouts . | . . . Manual 14 | . 10 4 Terminals 17 | . 13 4 Fabricators . | . . . Repair Stations . | . . . Recycling Units 1 | . . 1 Scanalyzers . | . . . Garrison Access . | . . . Terminal Hacks 7 | . 7 . Prototype ID Bank 2 | . 2 . Terminal Index 1 | . 1 . Alert Level 1 | . 1 . Unreport Threat 1 | . 1 . Hauler Manifests 2 | . 2 . Fabricator Hacks . | . . . Repair Station Hacks . | . . . Recycling Unit Hacks 1 | . . 1 Retrieve Components 1 | . . 1 Scanalyzer . | . . . Garrison Access Hacks . | . . . Unauthorized Hacks . | . . . Terminals . | . . . Fabricators . | . . . Repair Stations . | . . . Recycling Units . | . . . Scanalyzers . | . . . Garrison Access . | . . . Data Cores Recovered . | . . . Used . | . . . Hacking Detections 5 | . 3 2 Full Trace Events 2 | . 1 1 Feedback Events . | . . . Feedback Blocked . | . . . Robot Schematics Acquired . | . . . Robots Built . | . . . Authchips . | . . . Time . | . . . Total Robot Build Rating . | . . . Part Schematics Acquired . | . . . Parts Built . | . . . Authchips . | . . . Time . | . . . Total Part Build Rating . | . . . Parts Repaired . | . . . Time . | . . . Parts Recycled . | . . . Recycled Matter . | . . . Retrieved Matter . | . . . Retrieved Components 5 | . . 5 Parts Scanalyzed . | . . . Part Schematics Acquired . | . . . Parts Damaged . | . . . Bothacking | -11 -10 -9 ------------ Run | Yrd Mat Mat Used RIF Installer . | . . . Robots Hacked . | . . . Non-combat . | . . . Combat . | . . . Robot Hacks Applied . | . . . Relay Couplers Released . | . . . Fabnet Peak Effective % . | . . . Robots Rewired . | . . . Allies Hacked . | . . . Hacks Repelled . | . . . Allies | -11 -10 -9 -------- Run | Yrd Mat Mat Total Allies . | . . . Largest Group . | . . . Highest-Rated Group . | . . . Highest-Rated Ally . | . . . Total Orders . | . . . Ally Attacks . | . . . Total Damage . | . . . Kills . | . . . Allies Corrupted . | . . . Allies Melted . | . . . Intel | -11 -10 -9 ------- Run | Yrd Mat Mat Robot Analysis Total . | . . . Derelict Logs Recovered . | . . . Drone Launches . | . . . Drone Recoveries . | . . . Exploration | -11 -10 -9 ------------- Run | Yrd Mat Mat Turns Passed 2163 | 289 1091 783 Spaces Moved 973 | 196 463 314 Core 19 | 1 13 5 Treads . | . . . Legs 37 | . . 37 Wheels 917 | 195 450 272 Hover . | . . . Flight . | . . . Fastest Speed 50 | 50 90 90 Average Speed 111 | 99 107 125 Slowest Speed 700 | 100 450 700 Overloaded Moves . | . . . Propulsion Burnouts . | . . . Robots Hopped . | . . . Cave-ins Triggered . | . . . Exploration Rate (%) 32 | 6 68 22 Regions Visited 2 Branch Regions . Pre-discovered Areas . | . . . Known Exits Taken . | . . . Unknown Exits Taken 2 | 1 1 . Scrap Searched . | . . . Spaces Dug 5 | . 5 . Terrain Destroyed 24 | . 23 1 Melee . | . . . Projectile 24 | . 23 1 AOE . | . . . Terrain Rammed . | . . . Walls Destroyed . | . . . Machines Disabled . | . . . Actions | -11 -10 -9 --------- Run | Yrd Mat Mat Total 1538 | 247 679 612 Wait 262 | . 37 225 Move 971 | 195 462 314 Hop . | . . . Pick Up 23 | 10 9 4 Fast Attach 16 | 5 4 7 Attach 21 | 3 11 7 Detach 5 | 1 2 2 Swap 7 | 1 . 6 Drop 5 | 1 1 3 Fire 228 | 31 153 44 Melee . | . . . Ram . | . . . Kick . | . . . Crush . | . . . Escape Stasis . | . . . Rewire . | . . . Trap . | . . . Miscellaneous . | . . . Route ------- -11/Scrapyard -10/Materials (discovered 3 exits: *Mat x2 / [*Min]) -9/Materials History --------- Turn | Location | Event 19 | -11/Scrapyard | Discovered new exit (range 15) 290 | -11/Scrapyard | Entered Materials 311 | -10/Materials | Build established: Mutant 425 | -10/Materials | Discovered new exit (range 11) 630 | -10/Materials | Discovered new exit (range 7) 771 | -10/Materials | Core integrity fell below 50% 800 | -10/Materials | Core integrity fell below 20% 840 | -10/Materials | Lost 7 parts (1p2n1u3w) 914 | -10/Materials | Discovered new exit (range 16) 1253 | -10/Materials | Build established: Scavenger-Mutant 1381 | -10/Materials | Entered another Materials area 1381 | -9/Materials | Evolved 2 slots: Utility x2 1578 | -9/Materials | Core integrity fell below 50% 1589 | -9/Materials | Lost 5 parts (2n1u2w) 1849 | -9/Materials | Core integrity fell below 20% 1863 | -9/Materials | Lost 3 parts (2n1w) 2164 | -9/Materials | Destroyed by Y-45 Defender with Heavy Assault Rifle Last Messages --------------- K-01 Serf collects debris. Imp. Terrain Scanner destroyed. G-34 Mercenary destroyed. Acquired Aluminum Leg. Acquired 10 matter. K-01 Serf collects debris. Acquired 8 matter. Acquired Ion Engine. Acquired 22 matter. W-16 Scout sends out distress signal. Acquired Aluminum Leg. W-16 Scout sends out distress signal. Sensor Array destroyed. R-06 Scavenger collects Heat Sink. R-06 Scavenger collects Sml. Laser. Med. Armor Plating destroyed. Critical hit (Burn: +37). Aluminum Leg destroyed. Ion Engine destroyed. Critical hit (Burn: +37). Map ----- +----------------------------------------------------+ | ???????????? #?????????????? | | ?########### #?????????????? | | ?# #?????????????? | | ?# +?????????????? | | ?+ #?????????????? | | ?# #?????????????? | | ?# #?????????????? | | ?# #???? ????????? | | ?# #??"" ????????? | | ?# #? ??????????? | | ?# #+#???????????? | | ?# #???????????? | | ?# ##########??? | | ## #??? | | #??? | | ?# % """ ""#??? | | ?# [ """ T"#??? | | ####+##### """ ""#??? | | # *%% # #??? | | # ! # #??? | | # # ###/######## #??? | | # ##### #???# #??? | | # ## ## T #??## ##?? | | # # ## #### #?? | | # # ## Yg Y #?? | | # # ## #### @ #?? | | # ##### #??## ##?? | | #######+#############???# #??? | | ### # ### #####???????#Y#??? | | ??##### ## #???????# #??? | | ?????## ## #???????# #??? | | ?#????# ## !! #???????# #??? | | ?#????# ## !! #??????? ??? | | #??#??# ## ! #??????? ??? | | ???#?## ## #??????? ??? | | #?????# #####+######???? ??? | | ???#??# #?# !##??? ??? | | ???#### ### !#???#+#??? | | ???# #????????? | | ???# ###### #????????? | | #### #????# !#????????? | | # #????### ### !##????????? | | " # ########+######?????????? | | " " ## = #????????????? | | ! + ## #????????????? | | = # ## #?#??????????? | | # ## #????????????? | | #### ## #????????????? | | # ## #????????????? | | "" # ## #????????????? | +----------------------------------------------------+ Best States ------------- Heat Dissipation 42 Energy Generation 14 Energy Capacity 250 Matter Stores 324 Matter Capacity 400 Sight Range 16 Robot Scan Range 14 Terrain Scan Range 16 Terrain Scan Density 10 Armor Coverage 225 Evasion (%) 42 Item Schematics ----------------- None Robot Schematics ------------------ None Fabricated ------------ Nothing Alien Tech Used ----------------- None Achievements -------------- None Challenges ------------ None Game ------ Seed FrostSpectralMatrix Manual? 0 Play Time 00:24:00 Cumulative 27.5 hours Start 2024.04.08 @ 18:39:38 End 2024.04.08 @ 19:03:56 Sessions 1 Manual Loads 0 Difficulty Rogue Special Mode None Game No. 38 Rogue 38 Adventurer 0 Explorer 0 Win Type - Total 0 Types 0/0/0/0/0/0/0/0/0 Lore% 18 Gallery% 23 Achievement% 17 Wizard Run 0 Options --------- Layout 1 ASCII 0 Keyboard 1 Movement Numpad Keybinds 0 Fullscreen 1 Font 48/Terminus Map View 50x35 Zoom Use 13% Tactical HUD 0 Map Filters NONE Filters BRIGHTNESS(75) Steam 1 RUN: 896f7193-bbd7-46be-887d-46ac54f23d58